Workbook

Sheet планировщик
A3: Наименование организации | B3: ООО "Радуга" | C3: Инспектор по кадрам | D3: Зябликова К.Д. | E3: Должность руководителя организации | F3: Генеральный директор | G3: ФИО руководителя организации | H3: Куркин М.Т. | AO3: Для диаграммы
A4: Структурное подразделение | B4: ФИО | C4: Начало рабочего года | D4: Табельный номер | E4: Должность, профессия | F4: Общая продолжительность отпуска с учетом дополнительных отпусков и неотгулянных дней | G4: Первая часть отпуска | K4: Вторая часть отпуска | O4: Третья часть отпуска | S4: Четвертая часть отпуска | W4: Пятая часть отпуска | AA4: Шестая часть отпуска | AE4: Седьмая часть отпуска | AI4: Итого количество запланированных дней отпуска | AJ4: Средний дневной заработок за 12 месяцев | AK4: Сумма резерва | AL4: Взносы | AM4: ВСЕГО | AO4: 2018-01-01
G5: Дата начала | H5: Продолжительность | I5: Дата окончания | J5: Дата предупреждения работника о начале отпуска | K5: Дата начала | L5: Продолжительность | M5: Дата окончания | N5: Дата предупреждения работника о начале отпуска | O5: Дата начала | P5: Продолжительность | Q5: Дата окончания | R5: Дата предупреждения работника о начале отпуска | S5: Дата начала | T5: Продолжительность | U5: Дата окончания | V5: Дата предупреждения работника о начале отпуска | W5: Дата начала | X5: Продолжительность | Y5: Дата окончания | Z5: Дата предупреждения работника о начале отпуска | AA5: Дата начала | AB5: Продолжительность | AC5: Дата окончания | AD5: Дата предупреждения работника о начале отпуска | AE5: Дата начала | AF5: Продолжительность | AG5: Дата окончания | AH5: Дата предупреждения работника о начале отпуска | AI5: Проверьте совпадает ли общая продолжительность отпуска с запланированной. Если значения не совпадают ячейка подкрасится желтым или розовым цветом | AO5: до 1-го отпуска | AP5: 1-й отпуск | AQ5: до 2-го | AR5: 2-й отпуск | AS5: до 3-го | AT5: 3-й отпуск | AU5: до 4-го | AV5: 4-й отпуск | AW5: до 5-го | AX5: 5-й отпуск | AY5: до 6-го | AZ5: 6-й отпуск | BA5: до 7-го | BB5: 7-й отпуск | BE5: Смещение начала рабочего года | BF5: Неучтенный отпуск прошлого года
A6: Администрация | B6: Куркин Михаил Тимофеевич | C6: 2017-07-03 | D6: 1 | E6: генеральный директор | F6: 38 | G6: 2018-01-08 | H6: 18 | I6: 2018-01-26 | J6: =IF(G6="","",G6-14) -> 2017-12-25 | K6: 2018-07-02 | L6: 14 | M6: 2018-07-15 | N6: =IF(K6="","",K6-14) -> 2018-06-18 | O6: 2018-10-01 | P6: 2 | Q6: 2018-10-02 | R6: =IF(O6="","",O6-14) -> 2018-09-17 | S6: 2018-12-24 | T6: 4 | U6: 2018-12-27 | V6: =IF(S6="","",S6-14) -> 2018-12-10 | AI6: =H6+L6+P6+T6+X6+AB6+AF6 -> 38 | AJ6: 3645.57 | AK6: =AJ6*AI6 -> 138531.66 | AL6: =AK6*30.2% -> 41836.56132 | AM6: =AK6+AL6 -> 180368.2213 | AO6: =G6-$AO$4 -> 7 | AP6: =I6-G6 -> 18 | AQ6: =IF(K6="","",K6-I6) -> 157 | AR6: =IF(M6="","",M6-K6) -> 13 | AS6: =IF(O6="","",O6-M6) -> 78 | AT6: =IF(Q6="","",Q6-O6) -> 1 | AU6: =IF(S6="","",S6-Q6) -> 83 | AV6: =IF(U6="","",U6-S6) -> 3 | AW6: =IF(W6="","",W6-U6) ->  | AX6: =IF(Y6="","",Y6-W6) ->  | AY6: =IF(AA6="","",AA6-Y6) ->  | AZ6: =IF(AC6="","",AC6-AA6) ->  | BA6: =IF(AE6="","",AE6-AC6) ->  | BB6: =IF(AG6="","",AG6-AE6) ->  | BE6: 10 | BF6: 10
G7: кол-во дней отпуска авансом: 14 | K7: кол-во дней отпуска авансом: 14 | O7: кол-во дней отпуска авансом: 2 | S7: кол-во дней отпуска авансом: 4
A8: Администрация | B8: Комова Лидия Андреевна | C8: 2017-09-01 | D8: 2 | E8: секретарь | F8: 28 | G8: 2018-02-26 | H8: 14 | I8: 2018-03-12 | J8: 2018-02-12 | K8: 2018-05-14 | L8: 10 | M8: 2018-05-23 | N8: 2018-04-30 | O8: 2018-07-16 | P8: 4 | Q8: 2018-07-19 | R8: =IF(O8="","",O8-14) -> 2018-07-02 | U8: 2017-12-31 | AI8: =H8+L8+P8+T8 -> 28 | AJ8: 1580.39 | AK8: =AJ8*AI8 -> 44250.92 | AL8: =AK8*30.2% -> 13363.77784 | AM8: =AK8+AL8 -> 57614.69784 | AO8: =G8-$AO$4 -> 56 | AP8: =I8-G8 -> 14 | AQ8: =IF(K8="","",K8-I8) -> 63 | AR8: =IF(M8="","",M8-K8) -> 9 | AS8: =IF(O8="","",O8-M8) -> 54 | AT8: =IF(Q8="","",Q8-O8) -> 3 | AU8: =IF(S8="","",S8-Q8) ->  | AV8: =IF(U8="","",U8-S8) -> 43100 | AW8: =IF(W8="","",W8-U8) ->  | AX8: =IF(Y8="","",Y8-W8) ->  | AY8: =IF(AA8="","",AA8-Y8) ->  | AZ8: =IF(AC8="","",AC8-AA8) ->  | BA8: =IF(AE8="","",AE8-AC8) ->  | BB8: =IF(AG8="","",AG8-AE8) -> 
G9: кол-во дней отпуска авансом: 0 | K9: кол-во дней отпуска авансом: 5 | O9: кол-во дней отпуска авансом: 2
A10: Бухгалтерия | B10: Павлова Юлия Михайловна | C10: 2017-11-20 | D10: 3 | E10: главный бухгалтер | F10: 28 | G10: 2018-02-05 | H10: 14 | I10: 2018-02-18 | J10: 2018-01-22 | K10: 2018-09-03 | L10: 14 | M10: 2018-09-16 | N10: 2018-08-20 | AI10: 28 | AJ10: 2458.16 | AK10: =AJ10*AI10 -> 68828.48 | AL10: =AK10*30.2% -> 20786.20096 | AM10: =AK10+AL10 -> 89614.68096 | AO10: =G10-$AO$4 -> 35 | AP10: =I10-G10 -> 13 | AQ10: =IF(K10="","",K10-I10) -> 197 | AR10: =IF(M10="","",M10-K10) -> 13 | AS10: =IF(O10="","",O10-M10) ->  | AT10: =IF(Q10="","",Q10-O10) ->  | AU10: =IF(S10="","",S10-Q10) ->  | AV10: =IF(U10="","",U10-S10) ->  | AW10: =IF(W10="","",W10-U10) ->  | AX10: =IF(Y10="","",Y10-W10) ->  | AY10: =IF(AA10="","",AA10-Y10) ->  | AZ10: =IF(AC10="","",AC10-AA10) ->  | BA10: =IF(AE10="","",AE10-AC10) ->  | BB10: =IF(AG10="","",AG10-AE10) -> 
G11: кол-во дней отпуска авансом: 14 | K11: кол-во дней отпуска авансом: 7
A12: Бухгалтерия | B12: Зябликова Кристина Дмитриевна | C12: 2017-04-18 | D12: 4 | E12: бухгалтер | F12: 28 | G12: 2018-06-04 | H12: 28 | I12: 2018-07-02 | J12: 2018-05-21 | AI12: 28 | AJ12: 1807.12 | AK12: =AJ12*AI12 -> 50599.36 | AL12: =AK12*30.2% -> 15281.00672 | AM12: =AK12+AL12 -> 65880.36672 | AO12: =G12-$AO$4 -> 154 | AP12: =I12-G12 -> 28 | AQ12: =IF(K12="","",K12-I12) ->  | AR12: =IF(M12="","",M12-K12) ->  | AS12: =IF(O12="","",O12-M12) ->  | AT12: =IF(Q12="","",Q12-O12) ->  | AU12: =IF(S12="","",S12-Q12) ->  | AV12: =IF(U12="","",U12-S12) ->  | AW12: =IF(W12="","",W12-U12) ->  | AX12: =IF(Y12="","",Y12-W12) ->  | AY12: =IF(AA12="","",AA12-Y12) ->  | AZ12: =IF(AC12="","",AC12-AA12) ->  | BA12: =IF(AE12="","",AE12-AC12) ->  | BB12: =IF(AG12="","",AG12-AE12) -> 
G13: кол-во дней отпуска авансом: 0
A14: Кадровая служба | B14: Зябликова Кристина Дмитриевна | C14: 2017-08-14 | D14: 5 | E14: инспектор по кадрам | F14: 28 | G14: 2018-06-04 | H14: 28 | I14: 2018-07-02 | J14: =IF(G14="","",G14-14) -> 2018-05-21 | N14: =IF(K14="","",K14-14) ->  | R14: =IF(O14="","",O14-14) ->  | V14: =IF(S14="","",S14-14) ->  | AI14: =H14+L14+P14+T14 -> 28 | AJ14: 521.97 | AK14: =AJ14*AI14 -> 14615.16 | AL14: =AK14*30.2% -> 4413.77832 | AM14: =AK14+AL14 -> 19028.93832 | AO14: =G14-$AO$4 -> 154 | AP14: =I14-G14 -> 28 | AQ14: =IF(K14="","",K14-I14) ->  | AR14: =IF(M14="","",M14-K14) ->  | AS14: =IF(O14="","",O14-M14) ->  | AT14: =IF(Q14="","",Q14-O14) ->  | AU14: =IF(S14="","",S14-Q14) ->  | AV14: =IF(U14="","",U14-S14) ->  | AW14: =IF(W14="","",W14-U14) ->  | AX14: =IF(Y14="","",Y14-W14) ->  | AY14: =IF(AA14="","",AA14-Y14) ->  | AZ14: =IF(AC14="","",AC14-AA14) ->  | BA14: =IF(AE14="","",AE14-AC14) ->  | BB14: =IF(AG14="","",AG14-AE14) -> 
G15: кол-во дней отпуска авансом: 5
A16: Производственный отдел | B16: Ляпистов Петр Юрьевич | C16: 2017-06-08 | D16: 6 | E16: инженер | F16: 28 | G16: 2018-07-30 | H16: 28 | I16: 2018-08-26 | J16: 2018-07-16 | AI16: 28 | AJ16: 2876.34 | AK16: =AJ16*AI16 -> 80537.52 | AL16: =AK16*30.2% -> 24322.33104 | AM16: =AK16+AL16 -> 104859.851 | AO16: =G16-$AO$4 -> 210 | AP16: =I16-G16 -> 27 | AQ16: =IF(K16="","",K16-I16) ->  | AR16: =IF(M16="","",M16-K16) ->  | AS16: =IF(O16="","",O16-M16) ->  | AT16: =IF(Q16="","",Q16-O16) ->  | AU16: =IF(S16="","",S16-Q16) ->  | AV16: =IF(U16="","",U16-S16) ->  | AW16: =IF(W16="","",W16-U16) ->  | AX16: =IF(Y16="","",Y16-W16) ->  | AY16: =IF(AA16="","",AA16-Y16) ->  | AZ16: =IF(AC16="","",AC16-AA16) ->  | BA16: =IF(AE16="","",AE16-AC16) ->  | BB16: =IF(AG16="","",AG16-AE16) -> 
G17: кол-во дней отпуска авансом: 0
A18: Производственный отдел | B18: Александров Виктор Константинович | C18: 2017-05-11 | D18: 7 | E18: менеджер по закупкам | F18: 28 | G18: 2018-08-06 | H18: 28 | I18: 2018-09-02 | J18: =IF(G18="","",G18-14) -> 2018-07-23 | N18: =IF(K18="","",K18-14) ->  | R18: =IF(O18="","",O18-14) ->  | V18: =IF(S18="","",S18-14) ->  | AI18: =H18+L18+P18+T18 -> 28 | AJ18: 2145.61 | AK18: =AJ18*AI18 -> 60077.08 | AL18: =AK18*30.2% -> 18143.27816 | AM18: =AK18+AL18 -> 78220.35816 | AO18: =G18-$AO$4 -> 217 | AP18: =I18-G18 -> 27 | AQ18: =IF(K18="","",K18-I18) ->  | AR18: =IF(M18="","",M18-K18) ->  | AS18: =IF(O18="","",O18-M18) ->  | AT18: =IF(Q18="","",Q18-O18) ->  | AU18: =IF(S18="","",S18-Q18) ->  | AV18: =IF(U18="","",U18-S18) ->  | AW18: =IF(W18="","",W18-U18) ->  | AX18: =IF(Y18="","",Y18-W18) ->  | AY18: =IF(AA18="","",AA18-Y18) ->  | AZ18: =IF(AC18="","",AC18-AA18) ->  | BA18: =IF(AE18="","",AE18-AC18) ->  | BB18: =IF(AG18="","",AG18-AE18) -> 
G19: кол-во дней отпуска авансом: 0
AM20: =SUM(AM6:AM19) -> 595587.1144

Sheet унифицированная форма
A1: Унифицированная форма N Т-7
A2: Утверждена постановлением Госкомстата России
A3: от 05.01.2004 N 1
AM5: Код
AD6: Форма по ОКУД | AM6: 301020
AH7: по ОКПО
A8: наименование организации
A10: Мнение выборного профсоюзного органа | AB10: УТВЕРЖДАЮ
A11: от | B11: " | D11: " | G11: 20 | I11: г. | J11: N | N11: учтено | AB11: Руководитель
AI12: должность
R13: Номер документа | W13: Дата составления | Y13: На год
O14: ГРАФИК ОТПУСКОВ | AB14: личная подпись | AK14: расшифровка подписи
AB15: " | AF15: " | AN15: 20 | AQ15: г.
A17: Структурное подразделение | F17: Должность (специальность, профессия) по штатному расписанию | K17: Фамилия, имя, отчество | S17: Табельный номер | U17: ОТПУСК | AQ17: Примеча-
U18: количество календар- | X18: дата | AE18: перенесение отпуска | AQ18: ние
U19: ных дней | X19: заплани- | Z19: фактическая | AE19: основание | AL19: дата
X20: рованная | AE20: (документ) | AL20: предпола-
AL21: гаемого
AL22: отпуска
A23: 1 | F23: 2 | K23: 3 | S23: 4 | U23: 5 | X23: 6 | Z23: 7 | AE23: 8 | AL23: 9 | AQ23: 10
A41: Руководитель кадровой службы
M42: должность | Q42: личная подпись | V42: расшифровка подписи

Sheet ближайшие отпуска
A1: Праздничные дни, которые учитывает таблица | E1: Сотрудники, до отпуска которых осталось 21 день и меньше
A2: 2018-01-01 | B2: 43101 | E2: Структурное подразделение | F2: Должность | G2: Сотрудник | H2: Дата начала отпуска | I2: продолжительность отпуска
A3: 2018-01-02
A4: 2018-01-03
A5: 2018-01-04
A6: 2018-01-05
A7: 2018-01-06
A8: 2018-01-07
A9: 2018-01-08
A10: 2018-02-23
A11: 2018-03-08
A12: 2018-05-01
A13: 2018-05-09
A14: 2018-06-12
A15: 2018-11-04

Sheet сформировать график

Sheet унифицированная форма (2)
A1: Унифицированная форма N Т-7
A2: Утверждена постановлением Госкомстата России
A3: от 05.01.2004 N 1
AM5: Код
AD6: Форма по ОКУД | AM6: 301020
A7: ООО "Радуга" | AH7: по ОКПО
A8: наименование организации
AB10: УТВЕРЖДАЮ
AB11: Руководитель | AI11: Генеральный директор
AI12: должность
R13: Номер документа | W13: Дата составления | Y13: На год | AB13: Куркин
O14: ГРАФИК ОТПУСКОВ | R14: 3 | W14: 2017-12-15 | Y14: 2018 | AB14: личная подпись | AK14: Куркин М.Т.
AB15: " | AC15: 15 | AF15: " | AG15: декабря | AN15: 20 | AO15: 17 | AQ15: г.
A17: Структурное подразделение | F17: Должность (специальность, профессия) по штатному расписанию | K17: Фамилия, имя, отчество | S17: Табельный номер | U17: ОТПУСК | AQ17: Примеча-
U18: количество календар- | X18: дата | AE18: перенесение отпуска | AQ18: ние
U19: ных дней | X19: заплани- | Z19: фактическая | AE19: основание | AL19: дата
X20: рованная | AE20: (документ) | AL20: предпола-
AL21: гаемого
AL22: отпуска
A23: 1 | F23: 2 | K23: 3 | S23: 4 | U23: 5 | X23: 6 | Z23: 7 | AE23: 8 | AL23: 9 | AQ23: 10
A24: Администрация | F24: генеральный директор | K24: Куркин Михаил Тимофеевич | S24: 1 | U24: 18 | X24: 2018-01-09
A25: Администрация | F25: генеральный директор | K25: Куркин Михаил Тимофеевич | S25: 1 | U25: 14 | X25: 2018-07-02
A26: Администрация | F26: генеральный директор | K26: Куркин Михаил Тимофеевич | S26: 1 | U26: 2 | X26: 2018-10-01
A27: Администрация | F27: генеральный директор | K27: Куркин Михаил Тимофеевич | S27: 1 | U27: 4 | X27: 2018-12-24
A28: Администрация | F28: секретарь | K28: Комова Лидия Андреевна | S28: 2 | U28: 14 | X28: 2018-02-26
A29: Администрация | F29: секретарь | K29: Комова Лидия Андреевна | S29: 2 | U29: 10 | X29: 2018-05-14
A30: Администрация | F30: секретарь | K30: Комова Лидия Андреевна | S30: 2 | U30: 4 | X30: 2018-07-16
A31: Бухгалтерия | F31: главный бухгалтер | K31: Павлова Юлия Михайловна | S31: 3 | U31: 14 | X31: 2018-02-05
A32: Бухгалтерия | F32: главный бухгалтер | K32: Павлова Юлия Михайловна | S32: 3 | U32: 14 | X32: 2018-09-03
A33: Бухгалтерия | F33: бухгалтер | K33: Зябликова Кристина Дмитриевна | S33: 4 | U33: 28 | X33: 2018-06-04
A34: Кадровая служба | F34: инспектор по кадрам | K34: Зябликова Кристина Дмитриевна | S34: 5 | U34: 28 | X34: 2018-06-04
A35: Производственный отдел | F35: инженер | K35: Ляпистов Петр Юрьевич | S35: 6 | U35: 28 | X35: 2018-07-30
A36: Производственный отдел | F36: менеджер по закупкам | K36: Александров Виктор Константинович | S36: 7 | U36: 28 | X36: 2018-08-06
A41: Кадровая служба | M41: Инспектор по кадрам | Q41: Зябликова | V41: Зябликова К.Д.
M42: должность | Q42: личная подпись | V42: расшифровка подписи

Sheet пересечение отпусков
C1: 2017-01-01 | D1: 2017-01-02 | E1: 2017-01-03 | F1: 2017-01-04 | G1: 2017-01-05 | H1: 2017-01-06 | I1: 2017-01-07 | J1: 2017-01-08 | K1: 2017-01-09 | L1: 2017-01-10 | M1: 2017-01-11 | N1: 2017-01-12 | O1: 2017-01-13 | P1: 2017-01-14 | Q1: 2017-01-15 | R1: 2017-01-16 | S1: 2017-01-17 | T1: 2017-01-18 | U1: 2017-01-19 | V1: 2017-01-20 | W1: 2017-01-21 | X1: 2017-01-22 | Y1: 2017-01-23 | Z1: 2017-01-24 | AA1: 2017-01-25 | AB1: 2017-01-26 | AC1: 2017-01-27 | AD1: 2017-01-28 | AE1: 2017-01-29 | AF1: 2017-01-30 | AG1: 2017-01-31 | AH1: 2017-02-01 | AI1: 2017-02-02 | AJ1: 2017-02-03 | AK1: 2017-02-04 | AL1: 2017-02-05 | AM1: 2017-02-06 | AN1: 2017-02-07 | AO1: 2017-02-08 | AP1: 2017-02-09 | AQ1: 2017-02-10 | AR1: 2017-02-11 | AS1: 2017-02-12 | AT1: 2017-02-13 | AU1: 2017-02-14 | AV1: 2017-02-15 | AW1: 2017-02-16 | AX1: 2017-02-17 | AY1: 2017-02-18 | AZ1: 2017-02-19 | BA1: 2017-02-20 | BB1: 2017-02-21 | BC1: 2017-02-22 | BD1: 2017-02-23 | BE1: 2017-02-24 | BF1: 2017-02-25 | BG1: 2017-02-26 | BH1: 2017-02-27 | BI1: 2017-02-28 | BJ1: 2017-03-01 | BK1: 2017-03-02 | BL1: 2017-03-03 | BM1: 2017-03-04 | BN1: 2017-03-05 | BO1: 2017-03-06 | BP1: 2017-03-07 | BQ1: 2017-03-08 | BR1: 2017-03-09 | BS1: 2017-03-10 | BT1: 2017-03-11 | BU1: 2017-03-12 | BV1: 2017-03-13 | BW1: 2017-03-14 | BX1: 2017-03-15 | BY1: 2017-03-16 | BZ1: 2017-03-17 | CA1: 2017-03-18 | CB1: 2017-03-19 | CC1: 2017-03-20 | CD1: 2017-03-21 | CE1: 2017-03-22 | CF1: 2017-03-23 | CG1: 2017-03-24 | CH1: 2017-03-25 | CI1: 2017-03-26 | CJ1: 2017-03-27 | CK1: 2017-03-28 | CL1: 2017-03-29 | CM1: 2017-03-30 | CN1: 2017-03-31 | CO1: 2017-04-01 | CP1: 2017-04-02 | CQ1: 2017-04-03 | CR1: 2017-04-04 | CS1: 2017-04-05 | CT1: 2017-04-06 | CU1: 2017-04-07 | CV1: 2017-04-08 | CW1: 2017-04-09 | CX1: 2017-04-10 | CY1: 2017-04-11 | CZ1: 2017-04-12 | DA1: 2017-04-13 | DB1: 2017-04-14 | DC1: 2017-04-15 | DD1: 2017-04-16 | DE1: 2017-04-17 | DF1: 2017-04-18 | DG1: 2017-04-19 | DH1: 2017-04-20 | DI1: 2017-04-21 | DJ1: 2017-04-22 | DK1: 2017-04-23 | DL1: 2017-04-24 | DM1: 2017-04-25 | DN1: 2017-04-26 | DO1: 2017-04-27 | DP1: 2017-04-28 | DQ1: 2017-04-29 | DR1: 2017-04-30 | DS1: 2017-05-01 | DT1: 2017-05-02 | DU1: 2017-05-03 | DV1: 2017-05-04 | DW1: 2017-05-05 | DX1: 2017-05-06 | DY1: 2017-05-07 | DZ1: 2017-05-08 | EA1: 2017-05-09 | EB1: 2017-05-10 | EC1: 2017-05-11 | ED1: 2017-05-12 | EE1: 2017-05-13 | EF1: 2017-05-14 | EG1: 2017-05-15 | EH1: 2017-05-16 | EI1: 2017-05-17 | EJ1: 2017-05-18 | EK1: 2017-05-19 | EL1: 2017-05-20 | EM1: 2017-05-21 | EN1: 2017-05-22 | EO1: 2017-05-23 | EP1: 2017-05-24 | EQ1: 2017-05-25 | ER1: 2017-05-26 | ES1: 2017-05-27 | ET1: 2017-05-28 | EU1: 2017-05-29 | EV1: 2017-05-30 | EW1: 2017-05-31 | EX1: 2017-06-01 | EY1: 2017-06-02 | EZ1: 2017-06-03 | FA1: 2017-06-04 | FB1: 2017-06-05 | FC1: 2017-06-06 | FD1: 2017-06-07 | FE1: 2017-06-08 | FF1: 2017-06-09 | FG1: 2017-06-10 | FH1: 2017-06-11 | FI1: 2017-06-12 | FJ1: 2017-06-13 | FK1: 2017-06-14 | FL1: 2017-06-15 | FM1: 2017-06-16 | FN1: 2017-06-17 | FO1: 2017-06-18 | FP1: 2017-06-19 | FQ1: 2017-06-20 | FR1: 2017-06-21 | FS1: 2017-06-22 | FT1: 2017-06-23 | FU1: 2017-06-24 | FV1: 2017-06-25 | FW1: 2017-06-26 | FX1: 2017-06-27 | FY1: 2017-06-28 | FZ1: 2017-06-29 | GA1: 2017-06-30 | GB1: 2017-07-01 | GC1: 2017-07-02 | GD1: 2017-07-03 | GE1: 2017-07-04 | GF1: 2017-07-05 | GG1: 2017-07-06 | GH1: 2017-07-07 | GI1: 2017-07-08 | GJ1: 2017-07-09 | GK1: 2017-07-10 | GL1: 2017-07-11 | GM1: 2017-07-12 | GN1: 2017-07-13 | GO1: 2017-07-14 | GP1: 2017-07-15 | GQ1: 2017-07-16 | GR1: 2017-07-17 | GS1: 2017-07-18 | GT1: 2017-07-19 | GU1: 2017-07-20 | GV1: 2017-07-21 | GW1: 2017-07-22 | GX1: 2017-07-23 | GY1: 2017-07-24 | GZ1: 2017-07-25 | HA1: 2017-07-26 | HB1: 2017-07-27 | HC1: 2017-07-28 | HD1: 2017-07-29 | HE1: 2017-07-30 | HF1: 2017-07-31 | HG1: 2017-08-01 | HH1: 2017-08-02 | HI1: 2017-08-03 | HJ1: 2017-08-04 | HK1: 2017-08-05 | HL1: 2017-08-06 | HM1: 2017-08-07 | HN1: 2017-08-08 | HO1: 2017-08-09 | HP1: 2017-08-10 | HQ1: 2017-08-11 | HR1: 2017-08-12 | HS1: 2017-08-13 | HT1: 2017-08-14 | HU1: 2017-08-15 | HV1: 2017-08-16 | HW1: 2017-08-17 | HX1: 2017-08-18 | HY1: 2017-08-19 | HZ1: 2017-08-20 | IA1: 2017-08-21 | IB1: 2017-08-22 | IC1: 2017-08-23 | ID1: 2017-08-24 | IE1: 2017-08-25 | IF1: 2017-08-26 | IG1: 2017-08-27 | IH1: 2017-08-28 | II1: 2017-08-29 | IJ1: 2017-08-30 | IK1: 2017-08-31 | IL1: 2017-09-01 | IM1: 2017-09-02 | IN1: 2017-09-03 | IO1: 2017-09-04 | IP1: 2017-09-05 | IQ1: 2017-09-06 | IR1: 2017-09-07 | IS1: 2017-09-08 | IT1: 2017-09-09 | IU1: 2017-09-10 | IV1: 2017-09-11
B2: месяц | C2: январь | AH2: февраль | BJ2: март | CO2: апрель | DS2: май | EX2: июнь | GB2: июль | HG2: август | IL2: сентябрь | JP2: октябрь | KU2: ноябрь | LY2: декабрь | ND2: январь | OI2: февраль | PK2: март
A3: Сотрудник | B3: Должность | C3: 1 | AC3: 31 | AH3: 1 | BE3: 28 | BJ3: 1 | CJ3: 31 | CO3: 1 | DN3: 30 | DS3: 1 | ES3: 31 | EX3: 1 | FW3: 30 | GB3: 1 | HB3: 30 | HG3: 1 | IG3: 31 | IL3: 1 | JK3: 30 | JP3: 1 | KP3: 31 | KU3: 1 | LT3: 30 | LY3: 1 | MY3: 31 | ND3: 1 | OD3: 31 | OI3: 1 | PF3: 28 | PK3: 1 | QK3: 31
A4: Куркин Михаил Тимофеевич | B4: генеральный директор | NL4: 18 дней | UD4: 14 дней | XQ4: 2 дней | AAW4: 4 дней
A5: Комова Лидия Андреевна | B5: секретарь | PH5: 14 дней | SG5: 10 дней | UR5: 4 дней
A6: Павлова Юлия Михайловна | B6: главный бухгалтер | OM6: 14 дней | WO6: 14 дней
A7: Зябликова Кристина Дмитриевна | B7: бухгалтер | TB7: 28 дней
A8: Зябликова Кристина Дмитриевна | B8: инспектор по кадрам | TB8: 28 дней
A9: Ляпистов Петр Юрьевич | B9: инженер | VF9: 28 дней
A10: Александров Виктор Константинович | B10: менеджер по закупкам | VM10: 28 дней
